bitfinex-derivatives/quotes_ETHF0:USTF0_20250704
["timestamp","ask_amount","ask_price","bid_price","bid_amount"]
[1751647142783,0.80308,2489.6,2489.5,1.49911]
[1751647142984,0.80317,2489.4,2489.3,0.80315]
[1751647143483,0.80313,2489.5,2489.4,0.8031]
[1751647144485,0.80314,2489.4,2489.3,2.21534]
[1751647144779,0.80317,2489.3,2489.2,4.01098]
[1751647145682,0.80324,2489.1,2489.0,1.46575]
[1751647146583,0.80323,2489.2,2489.1,0.80321]
[1751647146978,0.80324,2489.1,2489.0,1.46575]
[1751647147377,0.80334,2488.8,2488.7,2.13844]
[1751647147577,2.00818,2489.0,2488.5,4.7227]
[1751647147784,0.8034,2488.6,2488.5,6.0578]
[1751647147982,0.8034,2488.6,2488.5,5.2544]
[1751647148174,0.8034,2488.6,2488.5,6.05783]
[1751647148679,0.80339,2488.7,2488.6,0.80337]
[1751647148980,0.8034,2488.6,2488.5,3.9193]
[1751647149373,0.6718,2488.8,2488.5,3.9193]
[1751647149583,3.8623,2489.0,2488.8,0.80331]
[1751647149780,3.2078,2489.4,2489.3,0.80317]
[1751647149979,4.01094,2489.4,2489.3,0.80317]
[1751647150180,44.81094,2489.4,2489.3,0.80317]
[1751647150886,4.01094,2489.4,2489.3,0.80317]
[1751647153482,3.2078,2489.4,2489.3,0.80317]
[1751647153789,4.01094,2489.4,2489.3,0.80317]
[1751647155476,0.80321,2489.3,2489.2,0.80318]
[1751647156680,0.80325,2489.2,2489.1,0.80321]
[1751647157085,0.80321,2489.3,2489.2,0.80317]
[1751647157890,0.8031,2489.6,2489.5,0.80311]
[1751647158487,0.8031,2489.6,2489.3,4.68484]
[1751647158488,0.80308,2489.7,2489.6,0.80304]
[1751647158791,0.686,2490.0,2489.5,3.2078]
[1751647159085,0.80305,2489.8,2489.7,0.80301]
[1751647159289,0.80301,2489.9,2489.8,0.80298]
[1751647160981,0.80301,2489.9,2489.8,0.80301]
[1751647161994,0.80301,2489.9,2489.8,2.22791]
[1751647162189,0.8029,2490.2,2489.8,1.4249]
[1751647162386,0.80291,2490.2,2490.1,0.80289]
[1751647162586,4.01064,2490.4,2490.3,0.80285]
[1751647162988,0.80289,2490.3,2490.2,0.80286]
[1751647163988,5.2149,2490.4,2489.9,0.695]
[1751647164192,0.80295,2490.1,2490.0,0.80292]
[1751647165089,0.80295,2490.1,2489.9,0.695]
[1751647165090,0.80295,2490.0,2489.9,1.49796]
[1751647165390,0.80301,2489.8,2489.7,1.49282]
[1751647165598,0.80304,2489.7,2489.6,0.80305]
[1751647165892,3.2078,2490.1,2489.7,0.80302]
[1751647165893,0.80304,2489.8,2489.7,0.80302]
[1751647166495,0.80308,2489.7,2489.6,0.80308]
[1751647167588,0.80308,2489.6,2489.5,6.01738]
[1751647167793,0.80307,2489.7,2489.6,0.80305]
[1751647168590,0.80307,2489.7,2489.2,2.32123585]
[1751647168591,0.80343,2488.5,2487.4,5.2172]
[1751647168790,0.80346,2488.4,2488.3,5.60070401]
[1751647168988,0.80346,2488.4,2487.7,2.6336]
[1751647168989,0.80366,2487.8,2487.7,2.6336]
[1751647169197,0.80374,2487.6,2486.9,13.59883]
[1751647169393,0.80382,2487.3,2487.2,1.3184]
[1751647169590,0.80386,2487.2,2487.0,1.3152]
[1751647169887,3.2078,2487.5,2487.2,0.80383]
[1751647170093,4.01156,2487.5,2487.3,2.119]
[1751647170293,3.2078,2487.5,2487.4,0.80379]
[1751647171298,4.01144,2487.9,2487.7,0.80366]
[1751647171492,3.2078,2487.9,2487.5,0.80373]
[1751647171693,0.80366,2487.8,2487.5,0.80373]
[1751647171891,0.80366,2487.8,2487.4,0.653]
[1751647172092,0.8037,2487.7,2487.5,2.21584]
[1751647172586,0.80367,2487.8,2487.6,0.8037]
[1751647172786,3.2078,2487.9,2487.5,1.4121]
[1751647172991,3.2078,2487.9,2487.7,0.80367]
[1751647173192,4.01144,2487.9,2487.7,0.80367]
[1751647173697,4.01144,2487.9,2487.8,0.80366]
[1751647173996,0.80361,2488.0,2487.8,0.80366]
[1751647174194,4.5468,2488.2,2487.5,1.4121]
[1751647174399,4.01143,2487.9,2487.7,0.80367]
[1751647174601,4.01143,2487.9,2487.6,0.80371]
[1751647174997,4.01143,2487.9,2487.5,1.4121]
[1751647174998,4.01143,2487.9,2487.7,0.80369]
[1751647175298,4.01143,2487.9,2487.5,1.4121]
[1751647175299,0.80366,2487.8,2487.6,0.8037]
[1751647175599,0.80368,2487.8,2487.5,2.21584]
[1751647175789,0.80369,2487.7,2487.5,2.21584]
[1751647176197,4.01152,2487.6,2487.5,2.21584]
[1751647176498,3.2078,2487.6,2487.5,2.21584]
[1751647176699,4.01152,2487.6,2487.5,2.21584]
[1751647176901,3.2078,2487.6,2487.5,2.21584]
[1751647178101,4.01152,2487.6,2487.5,1.4121]
[1751647178306,0.80379,2487.4,2487.3,0.80381]
[1751647178600,0.80382,2487.3,2487.2,1.50523]
[1751647178994,0.80382,2487.3,2487.2,0.80383]
[1751647180302,0.80381,2487.4,2487.3,0.80381]
[1751647180493,0.80377,2487.5,2487.4,0.80377]
[1751647180693,0.80377,2487.5,2487.4,0.80376]
[1751647181105,0.8038,2487.4,2487.3,0.80379]
[1751647181499,0.80378,2487.5,2487.4,0.80377]
[1751647181698,4.01155,2487.6,2487.5,0.80375]
[1751647182305,4.01155,2487.6,2487.2,1.3013]
[1751647182306,0.80377,2487.5,2487.4,0.80376]
[1751647183604,9.01891,2487.5,2486.6,3.2078]
[1751647183799,0.80399,2486.8,2486.7,0.80399]
[1751647184000,0.80396,2486.9,2486.8,0.80396]
[1751647184401,0.80398,2486.8,2486.7,2.22129]
[1751647184701,0.80398,2486.8,2486.5,69.436]
[1751647184702,3.2078,2486.8,2486.5,0.80406]
[1751647184907,0.80408,2486.6,2486.5,2.22136]
[1751647185108,0.80408,2486.5,2486.4,0.6522]
[1751647185303,0.80408,2486.5,2486.4,1.45629]
[1751647185500,3.2078,2486.8,2486.4,0.6522]
[1751647185706,0.80408,2486.5,2486.4,2.87358]
[1751647186307,0.80411,2486.4,2486.3,1.50802]
[1751647187607,3.2078,2486.5,2486.3,1.50802]
[1751647187608,3.2078,2486.5,2486.4,0.80411]
[1751647188007,3.2078,2486.5,2486.4,2.21811]
[1751647188804,4.01184,2486.7,2486.6,0.80405]
[1751647189008,0.80408,2486.6,2486.5,0.80406]
[1751647189206,3.2078,2486.7,2486.6,0.80405]
[1751647189608,4.01174,2487.0,2486.9,0.80392]
[1751647190003,3.2078,2487.0,2486.7,1.3752]
[1751647190206,0.80397,2486.9,2486.8,0.80395]
[1751647191211,0.80401,2486.8,2486.7,0.80399]
[1751647191413,0.80401,2486.7,2486.6,2.17923]
[1751647191614,0.80408,2486.6,2486.5,0.80405]
[1751647193612,4.01184,2486.7,2486.6,0.80405]
[1751647195012,0.80411,2486.5,2486.4,0.80408]
[1751647197610,0.80411,2486.5,2486.4,0.80406]
[1751647201912,0.80411,2486.5,2486.4,9.147421]
[1751647202619,0.80411,2486.5,2486.4,8.343361]
[1751647204119,0.80411,2486.5,2486.4,9.147471]
[1751647204313,2.08423761,2486.5,2486.4,8.343361]
[1751647204520,2.08423761,2486.5,2486.4,9.147471]
[1751647204913,2.08423761,2486.5,2486.4,8.343361]
[1751647205117,0.80411,2486.5,2486.4,8.343361]
[1751647205313,2.07461698,2486.5,2486.4,8.343361]
[1751647206224,7.07461698,2486.5,2486.4,8.1456458]
[1751647206716,10.8135947,2486.5,2486.4,8.1456458]
[1751647208414,8.43721698,2486.5,2486.4,6.0300658]
[1751647208611,2.01087,2485.7,2484.9,3.2078]
[1751647208813,0.8045,2485.2,2485.0,1.3069]
[1751647209019,0.80453,2485.1,2485.0,2.11144]
[1751647209220,0.8046,2484.9,2484.5,3.2078]
[1751647209415,3.2078,2485.0,2484.9,0.8046]
[1751647211625,3.2078,2485.0,2484.9,9.147961]
[1751647211925,4.01237,2485.0,2484.9,9.147961]
[1751647212125,4.01236,2485.0,2484.9,8.343361]
[1751647212519,5.25630088,2485.0,2484.9,8.343361]
[1751647212724,5.25630088,2485.0,2484.9,9.147961]
[1751647212924,4.45174088,2485.0,2484.9,9.147961]
[1751647213319,5.25631088,2485.0,2484.9,9.147961]
[1751647213516,5.25998445,2485.0,2484.9,8.343361]
[1751647214223,4.01237,2485.0,2484.9,9.147961]
[1751647214525,3.2078,2485.0,2484.9,9.147961]
[1751647215223,4.01236,2485.0,2484.9,8.343361]
[1751647215627,4.01236,2485.0,2484.9,9.147961]
[1751647216126,4.01236,2485.0,2484.9,8.343361]
[1751647216722,5.24141337,2485.0,2484.9,8.343361]
[1751647216920,10.24141337,2485.0,2484.9,8.343361]
[1751647217120,59.35941337,2485.0,2484.9,8.343361]
[1751647217324,10.24141337,2485.0,2484.9,8.343361]
[1751647217522,60.02761337,2485.0,2484.9,8.343361]
[1751647219328,5.91061337,2485.0,2484.9,8.343361]
[1751647219533,55.03461337,2485.0,2484.9,8.343361]
[1751647220226,5.24141337,2485.0,2484.9,8.343361]
[1751647220930,4.43685337,2485.0,2484.9,9.147961]
[1751647221233,5.24141337,2485.0,2484.9,8.343361]
[1751647222232,4.01236,2485.0,2484.9,8.343361]
[1751647223327,5.23950655,2485.0,2484.9,8.343361]
[1751647223528,5.93700655,2485.0,2484.9,8.343361]
[1751647223737,7.35170655,2485.0,2484.9,8.343361]
[1751647225336,12.35170655,2485.0,2484.9,8.343361]
[1751647227236,60.04100655,2485.0,2484.9,8.343361]
[1751647228234,55.04100655,2485.0,2484.9,8.343361]
[1751647228628,60.04100655,2485.0,2484.9,7.378241]
[1751647230734,60.04100655,2485.0,2484.9,5.137671]
[1751647230938,60.04100655,2485.0,2484.9,3.746601]
[1751647231138,60.04100655,2485.0,2484.9,0.640501]
[1751647231438,61.42210655,2485.0,2484.9,1e-06]
[1751647231640,0.80489,2484.0,2483.9,1.3209]
[1751647231939,41.50269,2484.0,2483.9,1.3209]
[1751647232838,3.2078,2484.0,2483.9,2.12582]
[1751647233334,0.80487,2484.1,2484.0,0.80489]
[1751647233541,0.80487,2484.1,2484.0,0.80487]
[1751647234542,0.80489,2484.0,2483.9,2.1258]
[1751647234741,4.01269,2484.0,2483.9,1.3209]
[1751647235842,4.01269,2484.0,2483.9,9.664261]
[1751647236245,41.50469,2484.0,2483.9,9.664261]
[1751647236543,42.73565862,2484.0,2483.9,9.664261]
[1751647237939,42.73565862,2484.0,2483.9,8.343361]
[1751647238345,42.72757665,2484.0,2483.9,8.343361]
[1751647241139,43.12080386,2484.0,2483.9,8.343361]
[1751647241545,83.92080386,2484.0,2483.9,8.343361]
[1751647242249,83.92480386,2484.0,2483.9,8.343361]
[1751647245148,95.54680386,2484.0,2483.9,8.343361]
[1751647245741,100.54680386,2484.0,2483.9,5.547551]
[1751647246242,51.42880386,2484.0,2483.9,5.547551]
[1751647246546,100.54980386,2484.0,2483.9,5.547551]
[1751647247346,46.42880386,2484.0,2483.9,5.547551]
[1751647247549,46.03557665,2484.0,2483.9,5.547551]
[1751647247742,83.53357665,2484.0,2483.9,5.547551]
[1751647248948,84.21817665,2484.0,2483.9,5.547551]
[1751647251338,89.21817665,2484.0,2483.9,4.689171]
[1751647251540,90.52467665,2484.0,2483.9,2.679411]
[1751647251743,93.57703442,2484.0,2483.9,0.588951]
[1751647251945,93.57703442,2484.0,2483.9,1e-06]
[1751647252544,54.77253442,2484.0,2483.9,1e-06]
[1751647252851,103.89253442,2484.0,2483.9,1e-06]
[1751647253751,98.89253442,2484.0,2483.9,1e-06]
[1751647254546,49.77253442,2484.0,2483.9,1e-06]
[1751647254844,98.89353442,2484.0,2483.9,1e-06]
[1751647255353,96.53487665,2484.0,2483.9,1e-06]
[1751647255549,98.89353442,2484.0,2483.9,1e-06]
[1751647255852,96.53487665,2484.0,2483.9,1e-06]
[1751647257250,97.83897665,2484.0,2483.9,1e-06]
[1751647260156,46.72017665,2484.0,2483.9,1e-06]
[1751647260352,95.15357665,2484.0,2483.9,1e-06]
[1751647260850,46.03557665,2484.0,2483.9,1e-06]
[1751647261051,95.15357665,2484.0,2483.9,1e-06]
[1751647261451,97.51223442,2484.0,2483.9,1e-06]
[1751647261653,95.15357665,2484.0,2483.9,1e-06]
[1751647262548,45.23068665,2484.0,2483.9,1e-06]
[1751647262753,83.53156665,2484.0,2483.9,1e-06]
[1751647263358,83.53156665,2484.0,2483.9,0.690601]
[1751647263555,83.53156665,2484.0,2483.9,1.394901]
[1751647263757,83.53156665,2484.0,2483.9,2.814601]
[1751647264453,83.52956665,2484.0,2483.9,2.814601]
[1751647264854,46.03556665,2484.0,2483.9,2.814601]
[1751647265055,83.52856665,2484.0,2483.9,2.814601]
[1751647266257,41.92368665,2484.0,2483.9,3.619521]
[1751647266560,42.72856665,2484.0,2483.9,2.814601]
[1751647267460,5.23556665,2484.0,2483.9,2.814601]
[1751647267656,4.43068665,2484.0,2483.9,8.619521]
[1751647267855,5.21961,2484.6,2483.9,9.826901]
[1751647268056,0.80481,2484.3,2484.2,0.80481]
[1751647268362,0.80481,2484.3,2484.1,0.80483]
[1751647268562,0.80481,2484.3,2484.2,2.13662]
[1751647268762,0.80481,2484.3,2484.2,1.3318]
[1751647268959,44.0078,2484.6,2484.2,1.3318]
[1751647269156,3.2078,2484.6,2484.2,1.3318]
[1751647269353,4.01259,2484.3,2484.2,1.3318]
[1751647270363,4.01259,2484.3,2484.2,1.331801]
[1751647271365,41.49659,2484.3,2484.2,1.331801]
[1751647272361,41.49659,2484.3,2484.2,1e-06]
[1751647276562,46.49659,2484.3,2484.2,1e-06]
[1751647276769,5.31299,2484.3,2484.2,1e-06]
[1751647276969,54.40899,2484.3,2484.2,1e-06]
[1751647278471,53.10859,2484.3,2484.2,1e-06]
[1751647279769,54.26167746,2484.3,2484.2,1e-06]
[1751647280274,54.26067746,2484.3,2484.2,1e-06]
[1751647281280,54.25867746,2484.3,2484.2,1e-06]
[1751647282578,5.16567746,2484.3,2484.2,1e-06]
[1751647282776,42.63967746,2484.3,2484.2,1e-06]
[1751647283079,41.48659,2484.3,2484.2,1e-06]
[1751647283981,42.64077067,2484.3,2484.2,1e-06]
[1751647284282,42.64078497,2484.3,2484.2,1e-06]
[1751647284477,47.64078497,2484.3,2484.2,1e-06]
[1751647284780,0.80508,2483.4,2483.3,2.041]
[1751647284982,41.48388,2483.4,2483.3,2.041]
[1751647285680,41.48388,2483.4,2483.3,0.7009]
[1751647285980,0.80518,2483.1,2483.0,2.0219]
[1751647286277,2.01305,2483.0,2482.3,3.2078]
[1751647286478,0.80541,2482.4,2482.2,0.80546]
[1751647286677,40.6768,2482.7,2482.3,2.87303]
[1751647286879,0.80535,2482.6,2482.4,0.80539]
[1751647287080,0.80535,2482.6,2482.5,1.3475]
[1751647287782,0.80534,2482.6,2482.5,1.3475]
[1751647288684,0.8054,2482.4,2482.3,0.7201]
[1751647288883,0.8054,2482.4,2482.3,2.0676]
[1751647289084,0.80539,2482.5,2482.3,2.87302]
[1751647289287,37.473,2482.6,2482.3,2.0676]
[1751647289581,44.0078,2482.7,2482.5,0.80535]
[1751647289782,44.81312,2482.7,2482.6,2.1041]
[1751647290184,44.0078,2482.7,2482.6,11.252801]
[1751647290386,44.81311,2482.7,2482.6,10.447461]
[1751647290782,44.0078,2482.7,2482.6,11.252801]
[1751647290978,44.81311,2482.7,2482.6,10.447461]
[1751647291381,44.81311,2482.7,2482.6,8.343361]
[1751647291382,82.28911,2482.7,2482.6,8.343361]
[1751647293092,44.81311,2482.7,2482.6,8.343361]
[1751647293291,3.2078,2482.7,2482.6,9.148701]
[1751647293587,40.6818,2482.7,2482.6,9.148701]
[1751647293789,37.474,2482.7,2482.6,9.148701]
[1751647293986,40.8,2482.9,2482.8,0.80527]
[1751647294189,3.2078,2483.0,2482.9,0.80524]
[1751647294386,0.80518,2483.1,2483.0,0.8052]
[1751647294581,81.4848,2483.3,2482.8,4.02657]
[1751647294785,82.28992,2483.3,2482.8,4.02657]
[1751647294988,0.80515,2483.2,2482.8,4.02657]
[1751647295185,0.80515,2483.2,2483.1,0.80517]
[1751647295386,0.80515,2483.2,2482.9,8.343361]
[1751647295585,0.80518,2483.1,2483.0,2.10549]
[1751647295886,82.28894,2483.3,2483.2,0.80514]
[1751647296085,41.48891,2483.3,2483.2,0.80514]
[1751647296485,44.0078,2483.3,2483.2,0.80514]
[1751647296692,81.4838,2483.3,2483.2,0.80514]
[1751647296891,82.28891,2483.3,2483.2,0.80514]
[1751647297088,44.0078,2483.3,2483.2,0.80514]
[1751647297281,3.2078,2483.3,2483.2,5.80514]
[1751647297591,3.2078,2483.9,2483.8,0.80495]
[1751647297790,37.473,2484.0,2483.9,0.80491]
[1751647298086,52.415,2484.1,2484.0,0.80488]
[1751647298291,91.04150615,2484.1,2484.0,0.80488]
[1751647298492,91.04150615,2484.1,2483.9,0.8049]
[1751647298686,0.80491,2484.0,2483.9,0.8049]
[1751647299290,90.69287,2484.1,2484.0,0.80489]
[1751647299594,41.95303049,2484.1,2484.0,0.80489]
[1751647299790,0.80485,2484.1,2484.0,0.80489]
[1751647300195,0.80485,2484.1,2484.0,9.148251]
[1751647300595,0.80485,2484.1,2484.0,8.343361]
[1751647301196,1.95833243,2484.1,2484.0,8.343361]
[1751647301888,3.30693243,2484.1,2484.0,8.343361]
[1751647302092,2.15345,2484.1,2484.0,8.343361]
[1751647303297,42.95345,2484.1,2484.0,8.343361]
[1751647305000,47.95345,2484.1,2484.0,8.343361]
[1751647305398,47.95345,2484.1,2484.0,0.68844435]
[1751647305695,0.80514,2483.2,2483.1,2.0725]
[1751647308803,0.80521,2483.0,2482.9,3.8744]
[1751647308998,39.47199,2483.1,2482.6,2.0927]
[1751647309203,0.80529,2482.8,2482.7,1.4014]
[1751647309706,0.80531,2482.7,2482.6,0.6913]
[1751647310305,2.01327,2482.7,2482.2,1.4014]
[1751647310602,0.80544,2482.3,2482.2,1.4014]
[1751647310806,0.80544,2482.3,2482.2,2.0593]
[1751647311903,0.80544,2482.3,2482.2,10.402661]
[1751647314209,0.80543,2482.4,2482.2,11.208131]
[1751647314413,0.80543,2482.4,2482.3,1.3128]
[1751647314709,0.80543,2482.4,2482.3,2.11824]
[1751647314902,0.8054,2482.5,2482.3,1.3128]
[1751647315103,0.8054,2482.4,2482.3,2.11822]
[1751647316108,0.8054,2482.4,2482.3,1.3128]
[1751647316309,0.8054,2482.4,2482.3,10.461601]
[1751647317805,37.459,2482.6,2482.3,9.656161]
[1751647318103,3.2078,2482.9,2482.8,0.80527]
[1751647318104,4.01307,2482.9,2482.8,0.80527]
[1751647318300,0.80528,2482.8,2482.7,0.80528]
[1751647318504,40.8,2482.8,2482.7,0.80528]
[1751647318709,0.80527,2482.9,2482.8,0.80526]
[1751647318910,0.80527,2482.9,2482.8,2.16356]
[1751647319307,0.80527,2482.9,2482.8,2.16357]
[1751647319707,0.80523,2483.0,2482.9,0.80523]
[1751647319909,0.8052,2483.1,2483.0,0.8052]
[1751647320108,0.80522,2483.0,2482.9,0.80522]
[1751647320613,37.459,2483.2,2482.8,3.37148]
[1751647320914,38.26418,2483.2,2483.1,0.80518]
[1751647321107,0.80519,2483.1,2483.0,0.80518]
[1751647321303,0.80522,2483.0,2482.9,9.148581]
[1751647321711,0.8052,2483.1,2483.0,0.8052]
[1751647321903,0.8052,2483.1,2483.0,2.2081]
[1751647322404,0.80516,2483.2,2483.1,0.80517]
[1751647322607,37.456,2483.3,2483.0,1.4029]
[1751647322808,0.80518,2483.1,2483.0,2.20809]
[1751647323813,0.80517,2483.2,2483.0,2.20809]
[1751647324117,0.80518,2483.1,2483.0,2.20809]
[1751647324317,0.80517,2483.2,2483.0,2.20809]
[1751647324517,0.80518,2483.1,2483.0,2.20809]
[1751647325018,37.456,2483.3,2483.1,0.80518]
[1751647325211,37.456,2483.3,2483.2,0.80514]
[1751647326113,81.4588,2483.4,2483.3,0.80511]
[1751647326314,0.80511,2483.3,2483.2,0.80514]
[1751647326506,0.80511,2483.3,2483.1,0.80515]
[1751647326714,0.80515,2483.2,2483.1,0.80516]
[1751647327416,81.4578,2483.4,2483.1,0.80516]
[1751647327617,0.80514,2483.2,2483.1,0.80516]
[1751647328118,0.80518,2483.1,2483.0,10.551451]
[1751647328317,0.80516,2483.2,2483.1,0.80518]
[1751647328818,0.80514,2483.3,2483.0,9.746261]
[1751647329117,0.80514,2483.3,2483.1,0.80517]
[1751647329316,40.8,2483.4,2483.3,0.80511]
[1751647329616,0.80518,2483.1,2483.0,9.746261]
[1751647329815,0.80518,2483.1,2483.0,10.551471]
[1751647330220,0.80518,2483.1,2483.0,9.746261]
[1751647330611,0.80516,2483.2,2483.1,0.80517]
[1751647331011,0.80518,2483.1,2483.0,10.551451]
[1751647331817,0.6597,2483.3,2483.0,9.746261]
[1751647332018,0.80518,2483.1,2483.0,10.551441]
[1751647332820,0.80514,2483.2,2483.1,0.80517]
[1751647333612,0.80514,2483.2,2483.0,9.746261]
[1751647333613,0.80518,2483.1,2483.0,10.551441]
[1751647334013,0.80518,2483.1,2483.0,9.746261]
[1751647334216,0.80518,2483.1,2483.0,9.148571]
[1751647334612,0.80516,2483.2,2483.1,0.80516]
[1751647334819,1.46483,2483.3,2483.2,0.80514]
[1751647335014,61.1968,2483.7,2483.1,3.40983]
[1751647335320,38.24203,2483.6,2483.5,0.80503]
[1751647335519,41.60503,2483.6,2483.5,0.80503]
[1751647335721,0.80503,2483.6,2483.5,0.80503]
[1751647335916,0.80506,2483.5,2483.4,0.80506]
[1751647337424,0.80508,2483.4,2483.3,2.23549]
[1751647337612,0.80507,2483.5,2483.4,0.80506]
[1751647338522,0.80508,2483.4,2483.3,1.4304]
[1751647338824,0.80511,2483.3,2483.2,9.733061]
[1751647339021,0.8051,2483.4,2483.3,0.8051]
[1751647340018,0.80511,2483.3,2483.2,10.538181]
[1751647340221,0.80514,2483.2,2483.1,0.80517]
[1751647341728,0.80518,2483.1,2483.0,5.39819]
[1751647341922,0.80518,2483.1,2483.0,3.2078]
[1751647342521,0.80523,2483.0,2482.9,0.80524]
[1751647342823,0.80518,2483.1,2483.0,0.80519]
[1751647343024,0.6999,2483.3,2482.8,1.4059]
[1751647343324,0.8052,2483.1,2483.0,8.343361]
[1751647343919,0.8052,2483.1,2483.0,9.148571]
[1751647344124,0.80518,2483.1,2483.0,9.148571]
[1751647344825,0.80518,2483.1,2483.0,8.343361]
[1751647345023,0.6999,2483.3,2483.0,9.148571]
[1751647345320,0.80518,2483.1,2483.0,8.343361]
[1751647345527,0.80518,2483.1,2483.0,9.148571]
[1751647346123,0.80516,2483.2,2483.0,9.148571]
[1751647346323,0.80518,2483.1,2483.0,9.148571]
[1751647346724,0.80518,2483.1,2483.0,8.343361]
[1751647347119,5.80518,2483.1,2483.0,7.420561]
[1751647347321,7.06279575,2483.1,2483.0,7.420561]
[1751647347520,8.37259575,2483.1,2483.0,7.420561]
[1751647347927,49.17259575,2483.1,2483.0,7.420561]
[1751647348627,51.5369311,2483.1,2483.0,7.420561]
[1751647348824,49.17259575,2483.1,2483.0,7.420561]
[1751647349426,51.54324727,2483.1,2483.0,6.598271]
[1751647349624,49.17259575,2483.1,2483.0,6.598271]
[1751647351429,94.25126815,2483.1,2483.0,6.598271]
[1751647351729,94.24826815,2483.1,2483.0,6.598271]
[1751647352328,95.61736815,2483.1,2483.0,6.598271]
[1751647353029,98.24889575,2483.1,2483.0,6.598271]
[1751647353832,98.24889575,2483.1,2483.0,5.512341]
[1751647354033,98.24889575,2483.1,2483.0,4.624241]
[1751647354929,100.61736815,2483.1,2483.0,4.624241]
[1751647355333,100.61736815,2483.1,2483.0,2.569041]
[1751647355534,100.61736815,2483.1,2483.0,1.309201]
[1751647355734,100.61736815,2483.1,2483.0,1e-06]
[1751647358137,51.07679575,2483.1,2483.0,1e-06]
[1751647358541,91.87679575,2483.1,2483.0,1e-06]
[1751647359031,42.86279575,2483.1,2483.0,1e-06]
[1751647359236,91.87279575,2483.1,2483.0,1e-06]
[1751647360647,12.85461575,2483.1,2483.0,0.805211]
[1751647360936,3.2078,2483.2,2483.1,0.80518]
[1751647361146,3.2078,2483.5,2483.4,0.80508]
[1751647361337,4.01285,2483.5,2483.3,0.8051]
[1751647361644,4.01285,2483.5,2483.4,2.90408]
[1751647361842,3.2078,2483.5,2483.4,2.099]
[1751647362044,3.2078,2483.5,2483.4,2.90408]
[1751647362343,4.01285,2483.5,2483.4,2.90408]
[1751647362537,0.80505,2483.5,2483.4,2.90408]
[1751647362841,0.80505,2483.5,2483.4,2.099]
[1751647364242,0.80511,2483.3,2483.2,0.6961]
[1751647365244,0.80511,2483.3,2483.2,0.696101]
[1751647369248,0.80511,2483.3,2483.2,1.501241]
[1751647369650,0.80511,2483.3,2483.2,0.696101]
[1751647370349,0.80511,2483.3,2483.2,1.501241]
[1751647371756,0.80511,2483.3,2483.2,0.696101]
[1751647373457,38.2091,2483.4,2483.3,0.80511]
[1751647373757,38.19407,2483.5,2483.4,0.80507]
[1751647373955,37.389,2483.5,2483.4,0.80507]
[1751647374154,38.19405,2483.5,2483.4,0.80507]
[1751647374354,37.387,2483.6,2483.3,1.4407]
[1751647374557,0.80507,2483.5,2483.4,0.80506]
[1751647375255,0.80507,2483.5,2483.4,0.805061]
[1751647375450,0.80507,2483.5,2483.4,1e-06]
[1751647376055,0.80507,2483.5,2483.4,1.374801]
[1751647376358,0.80507,2483.5,2483.4,2.179881]
[1751647376955,0.80507,2483.5,2483.4,1.374801]
[1751647377856,0.80507,2483.5,2483.4,2.179881]
[1751647378057,0.80507,2483.5,2483.4,1.374801]
[1751647378356,0.80507,2483.5,2483.4,2.179881]
[1751647378557,0.80507,2483.5,2483.4,1.374801]
[1751647382159,0.80507,2483.5,2483.4,1e-06]
[1751647383059,0.80505,2483.5,2483.4,0.805071]
[1751647384455,0.80505,2483.5,2483.4,1e-06]
[1751647384953,0.80505,2483.5,2483.4,2.217681]
[1751647385755,0.80503,2483.6,2483.5,0.80502]
[1751647386059,2.03081907,2483.6,2483.5,1.4126]
[1751647386357,0.80505,2483.5,2483.4,1e-06]
[1751647386855,2.03149942,2483.5,2483.4,1e-06]
[1751647387056,0.80505,2483.5,2483.4,1e-06]
[1751647387360,2.03239011,2483.5,2483.4,1e-06]
[1751647390059,5.24019011,2483.5,2483.4,1e-06]
[1751647390260,6.58449011,2483.5,2483.4,1e-06]
[1751647394358,5.24019011,2483.5,2483.4,1e-06]
[1751647397561,6.60579011,2483.5,2483.4,1e-06]
[1751647400362,8.97426251,2483.5,2483.4,1e-06]
[1751647401467,6.60579011,2483.5,2483.4,1e-06]
[1751647402167,8.97426251,2483.5,2483.4,1e-06]
[1751647402367,6.60579011,2483.5,2483.4,1e-06]
[1751647403265,5.24019011,2483.5,2483.4,1e-06]
[1751647404866,6.54539011,2483.5,2483.4,1e-06]
[1751647407568,54.16319011,2483.5,2483.4,1e-06]
[1751647409058,19.19166251,2483.5,2483.4,1e-06]
[1751647409262,56.52666251,2483.5,2483.4,1e-06]
[1751647410666,57.87596251,2483.5,2483.4,1e-06]
[1751647411072,8.95796251,2483.5,2483.4,1e-06]
[1751647411264,56.51066251,2483.5,2483.4,1e-06]
[1751647416574,56.50266251,2483.5,2483.4,1e-06]
[1751647423081,54.13419011,2483.5,2483.4,1e-06]
[1751647423986,0.80521,2483.0,2482.9,2.092]
[1751647424279,39.34455011,2483.0,2482.9,2.092]
[1751647424774,1.22734011,2483.0,2482.9,7.89724]
[1751647425180,1.22734011,2483.0,2482.9,7.092]
[1751647425381,2.03255011,2483.0,2482.9,7.092]
[1751647425975,2.03255011,2483.0,2482.9,2.092]
[1751647426979,2.03255011,2483.0,2482.9,10.435361]
[1751647428575,1.22734011,2483.0,2482.9,10.435361]
[1751647428775,1.22734011,2483.0,2482.9,11.240601]
[1751647429272,2.03255011,2483.0,2482.9,11.240601]
[1751647429470,1.22734011,2483.0,2482.9,11.240601]
[1751647429777,2.03255011,2483.0,2482.9,11.240601]
[1751647430374,2.03255011,2483.0,2482.9,16.240601]
[1751647430375,1.22734011,2483.0,2482.9,16.240601]